bitfinex/quotes_SOLUSD_20240727
["timestamp","ask_amount","ask_price","bid_price","bid_amount"]
[1722113344849,20.0,180.95,180.82,13.8253]
[1722113345049,20.0,180.98,180.82,13.8253]
[1722113345050,65.17,180.94,180.82,13.8253]
[1722113345269,0.17,180.93,180.86,13.8223]
[1722113345588,0.17,180.93,180.81,15.3109]
[1722113345751,5.5281,180.9,180.81,15.3109]
[1722113345944,5.5287,180.88,180.81,15.3109]
[1722113346149,5.5287,180.88,180.71,0.0542685]
[1722113346150,5.5311,180.8,180.71,0.0542685]
[1722113346452,5.533,180.74,180.71,0.0542685]
[1722113346654,40.17,180.79,180.71,0.0542685]
[1722113346964,20.0,180.73,180.63,15.3109]
[1722113347165,61.84,180.78,180.55,15.3109]
[1722113347166,5.534,180.7,180.55,15.3109]
[1722113347482,85.17,180.69,180.55,15.3109]
[1722113347779,20.0,180.69,180.55,15.3109]
[1722113347951,65.34,180.68,180.58,5.5375]
[1722113348150,65.34,180.68,180.55,15.3109]
[1722113348861,20.34,180.68,180.58,13.8437]
[1722113349071,0.34,180.68,180.6,5.5369]
[1722113349469,0.34,180.67,180.58,13.8437]
[1722113349758,0.17,180.67,180.58,13.8437]
[1722113350174,0.17,180.67,180.6,5.537]
[1722113350472,25.5315,180.79,180.62,5.5364]
[1722113350681,5.5309,180.8,180.64,13.8394]
[1722113350882,20.0,180.83,180.55,15.3109]
[1722113350883,16.67,180.74,180.55,15.3109]
[1722113351085,20.0,180.74,180.55,15.3109]
[1722113351379,20.0,180.71,180.55,20.8495]
[1722113351585,5.79820083,180.8,180.55,15.3109]
[1722113351586,20.0,180.67,180.55,15.3109]
[1722113351761,25.5353,180.66,180.55,15.3109]
[1722113351964,20.0,180.65,180.55,15.3109]
[1722113352182,65.0,180.64,180.55,15.3109]
[1722113352360,20.0,180.62,180.5,0.9056246]
[1722113352553,0.34,180.63,180.5,0.9056246]
[1722113352885,20.0,180.61,180.5,0.9056246]
[1722113353064,5.5379,180.58,180.5,0.9056246]
[1722113353385,5.5389,180.54,180.5,0.9056246]
[1722113353684,20.17,180.53,180.5,0.9056246]
[1722113353852,0.17,180.52,180.5,0.9056246]
[1722113354054,45.34,180.52,180.5,0.9056246]
[1722113354253,40.0,180.51,180.5,0.9056246]
[1722113354461,20.0,180.49,180.39,15.6068]
[1722113354786,20.17,180.48,180.29,0.9056246]
[1722113354973,5.5416,180.46,180.31,5.5459]
[1722113355166,20.0,180.45,180.31,19.4101]
[1722113355478,65.34,180.44,180.29,0.9056246]
[1722113355679,65.34,180.44,180.31,13.8644]
[1722113355983,65.34,180.44,180.29,0.9056246]
[1722113356285,20.0,180.43,180.31,13.8647]
[1722113356461,45.34,180.42,180.31,13.8647]
[1722113356662,0.17,180.42,180.29,0.9056246]
[1722113356869,0.17,180.43,180.29,0.9056246]
[1722113357087,0.17,180.43,180.39,5.5433]
[1722113357255,20.0,180.55,180.41,5.5427]
[1722113357451,20.0,180.58,180.34,29.31]
[1722113357689,6.4825,180.62,180.34,29.31]
[1722113357690,26.4825,180.62,180.47,5.541]
[1722113357915,5.5385,180.56,180.41,5.5428]
[1722113358201,25.5389,180.55,180.36,13.8605]
[1722113358393,20.0,180.57,180.41,5.5427]
[1722113358691,20.0,180.55,180.42,13.8559]
[1722113358992,20.0,180.61,180.34,29.31]
[1722113359198,6.4825,180.62,180.51,5.5398]
[1722113359394,32.019,180.62,180.47,19.3932]
[1722113359564,20.0,180.66,180.47,13.8523]
[1722113359768,27.66,180.77,180.36,22.0105]
[1722113359769,20.0,180.71,180.6,5.5369]
[1722113359986,20.0,180.77,180.59,13.8431]
[1722113360198,20.0,180.69,180.53,15.6068]
[1722113360359,6.4825,180.79,180.53,15.6068]
[1722113360360,20.0,180.65,180.53,15.6068]
[1722113360564,20.0,180.7,180.53,15.6068]
[1722113360784,6.4825,180.79,180.57,13.8443]
[1722113360785,20.0,180.78,180.57,13.8443]
[1722113360980,5.5327,180.75,180.58,5.5374]
[1722113361184,26.4825,180.79,180.64,13.8395]
[1722113361382,27.41138312,181.0,180.58,29.31]
[1722113361383,20.0,180.83,180.58,29.31]
[1722113361690,20.0,180.85,180.69,13.8352]
[1722113361873,6.4825,180.89,180.63,13.8403]
[1722113361874,20.0,180.86,180.63,13.8403]
[1722113362082,6.4825,180.89,180.59,26.7437]
[1722113362083,20.0,180.74,180.59,6.4037]
[1722113362391,5.5334,180.72,180.59,6.4037]
[1722113362570,25.5328,180.74,180.56,13.8451]
[1722113362767,20.0,180.77,180.56,13.8451]
[1722113362962,20.0,180.79,180.63,5.5359]
[1722113363181,20.0,180.76,180.54,45.0]
[1722113363394,20.0,180.72,180.56,13.8455]
[1722113363700,20.0,180.76,180.53,15.6068]
[1722113363701,40.0,180.69,180.53,15.6068]
[1722113363900,5.5368,180.61,180.53,15.6068]
[1722113364201,20.0,180.56,180.35,13.8613]
[1722113364375,20.0,180.54,180.33,6.4037]
[1722113364570,20.0,180.52,180.39,5.5434]
[1722113364771,65.34,180.55,180.34,13.8623]
[1722113364772,65.17,180.51,180.34,13.8623]
[1722113365097,0.34,180.5,180.34,13.8623]
[1722113365299,0.34,180.5,180.32,15.6068]
[1722113365300,5.5414,180.46,180.32,15.6068]
[1722113365468,0.17,180.45,180.32,21.1523]
[1722113365789,0.17,180.43,180.32,15.6068]
[1722113366091,20.0,180.48,180.32,15.6068]
[1722113366305,45.34,180.47,180.34,5.545]
[1722113366622,40.0,180.46,180.32,15.6068]
[1722113366767,45.17,180.45,180.29,0.9056246]
[1722113366965,20.0,180.39,180.29,0.9056246]
[1722113367499,20.0,180.38,180.31,5.5458]
[1722113367700,20.0,180.38,180.3,13.8651]
[1722113367701,20.0,180.46,180.35,5.5445]
[1722113367877,40.0,180.51,180.3,13.8651]
[1722113368071,5.5411,180.47,180.3,19.4112]
[1722113368268,20.0,180.42,180.29,0.9056246]
[1722113368582,5.5434,180.4,180.29,0.9056246]
[1722113368893,61.79990454,180.41,180.29,0.9056246]
[1722113368894,20.0,180.38,180.29,0.9056246]
[1722113369071,21.79990454,180.39,180.29,0.9056246]
[1722113369072,20.0,180.32,180.29,0.9056246]
[1722113369277,20.0,180.31,180.29,0.9056246]
[1722113369485,0.17,180.3,180.29,0.9056246]
[1722113369712,20.17,180.3,180.29,0.9056246]
[1722113370003,5.5478,180.25,180.12,15.6068]
[1722113370199,20.0,180.23,180.07,0.9056246]
[1722113370371,2.13990454,180.22,180.07,0.9056246]
[1722113370570,21.79990454,180.21,180.07,0.9056246]
[1722113370787,20.0,180.2,180.07,0.9056246]
[1722113370985,1.96990454,180.19,180.07,6.4589246]
[1722113371290,1.79990454,180.18,180.07,0.9056246]
[1722113371597,1.79990454,180.18,180.15,5.5506]
[1722113371817,1.79990454,180.18,180.17,5.5503]
[1722113371967,1.79990454,180.18,180.15,13.8772]
[1722113372291,1.79990454,180.18,180.07,0.9056246]
[1722113372888,1.79990454,180.18,180.11,13.8796]
[1722113373298,1.79990454,180.18,180.11,5.552]
[1722113373486,1.79990454,180.18,180.07,0.9056246]
[1722113374011,5.5451,180.34,180.11,29.31]
[1722113374299,20.0,180.37,180.2,13.8727]
[1722113374498,20.0,180.37,180.25,5.5475]
[1722113374499,20.0,180.34,180.25,5.5475]
[1722113374715,20.0,180.34,180.2,13.8727]
[1722113375213,40.0,180.32,180.14,13.8776]
[1722113375393,40.0,180.32,180.19,5.5494]
[1722113375592,40.0,180.3,180.14,13.8776]
[1722113375903,20.0,180.3,180.19,13.8737]
[1722113376587,20.0,180.26,180.13,13.8787]
[1722113376924,20.0,180.34,180.18,13.8743]
[1722113377105,20.0,180.31,180.08,18.85759766]
[1722113377293,20.0,180.3,180.08,18.85759766]
[1722113377496,0.34,180.29,180.08,18.85759766]
[1722113377674,0.17,180.29,180.09,20.0]
[1722113377874,49.31,180.39,180.09,20.0]
[1722113377875,20.0,180.39,180.14,6.5036]
[1722113378105,20.0,180.41,180.18,29.31]
[1722113378308,20.0,180.46,180.35,5.5446]
[1722113378609,20.0,180.41,180.19,20.0]
[1722113378902,20.0,180.44,180.2,45.34]
[1722113379218,0.28111181,180.43,180.34,5.5449]
[1722113379377,0.28111181,180.43,180.21,20.0]
[1722113379576,0.28111181,180.43,180.22,45.0]
[1722113379903,0.28111181,180.43,180.41,5.5428]
[1722113380093,0.28111181,180.43,180.41,5.5427]
[1722113380288,0.28111181,180.43,180.38,13.8594]
[1722113380484,0.28111181,180.43,180.41,5.5427]
[1722113380683,20.0,180.7,180.4,29.31]
[1722113380886,6.3782,180.78,180.48,29.31]
[1722113380887,5.5331,180.73,180.48,29.31]
[1722113381112,6.3782,180.78,180.42,20.0]
[1722113381113,6.3782,180.78,180.67,5.5349]
[1722113381319,26.3782,180.78,180.53,29.31]
[1722113381606,26.3782,180.78,180.52,6.5036]
[1722113381607,5.5325,180.75,180.58,13.8435]
[1722113381937,20.0,180.77,180.59,45.0]
[1722113382079,5.532,180.77,180.62,5.5362]
[1722113382275,6.3782,180.78,180.66,5.5351]
[1722113382494,25.531,180.8,180.66,5.5351]
[1722113382714,0.9056246,180.81,180.59,45.0]
[1722113382715,0.9056246,180.81,180.67,13.8371]
[1722113382886,0.9056246,180.81,180.68,45.0]
[1722113383088,0.9056246,180.81,180.74,5.5325]
[1722113383304,0.9056246,180.81,180.72,13.833]
[1722113383498,0.9056246,180.81,180.75,5.5323]
[1722113383814,20.0,180.94,180.8,29.31]
[1722113383983,0.9056246,181.02,180.87,5.5286]
[1722113384183,0.9056246,181.02,180.86,13.8223]
[1722113384400,20.0,181.01,180.79,29.8107]
[1722113384606,5.5252,180.99,180.83,5.5299]
[1722113384784,6.4299246,181.02,180.85,5.5293]
[1722113384982,25.5257,180.98,180.79,29.6407]
[1722113385286,20.0,180.95,180.79,29.6407]
[1722113385495,20.0,180.95,180.72,29.31]
[1722113385496,20.0,180.91,180.72,13.8334]
[1722113385702,20.0,180.93,180.76,5.532]
[1722113385892,20.0,180.93,180.79,13.8276]
[1722113385893,20.2216318,180.93,180.79,13.8276]
[1722113386096,20.2216318,180.93,180.72,13.8333]
[1722113386097,5.5289,180.87,180.72,13.8333]
[1722113386320,20.0,180.86,180.72,13.8333]
[1722113386495,5.5296,180.85,180.69,15.8128]
[1722113386817,20.0,180.84,180.69,15.8128]
[1722113387318,40.0,180.86,180.71,13.8341]
[1722113387489,20.0,180.86,180.69,21.3471]
[1722113387700,20.0,180.84,180.69,15.8128]
[1722113387892,20.0,180.82,180.64,13.8396]
[1722113388112,65.17,180.81,180.64,13.8396]
[1722113388297,20.0,180.81,180.64,13.8396]
[1722113388496,45.0,180.8,180.66,5.5351]
[1722113388721,20.0,180.79,180.67,5.5347]
[1722113389036,20.0,180.79,180.64,13.8396]
[1722113389037,45.0,180.78,180.64,13.8396]
[1722113389240,20.0,180.77,180.64,19.3752]
[1722113389403,20.0,180.77,180.64,13.8396]
[1722113389602,20.0,180.76,180.58,15.8128]
[1722113389903,65.0,180.75,180.61,5.5367]
[1722113390311,65.0,180.75,180.63,5.5361]
[1722113390518,20.0,180.74,180.6,5.5368]
[1722113390716,25.5334,180.72,180.58,21.3504]
[1722113390889,65.34,180.71,180.6,5.5369]
[1722113391089,65.34,180.71,180.58,15.8128]
[1722113391090,45.34,180.71,180.62,5.5364]
[1722113391317,20.0,180.7,180.62,13.8406]
[1722113391520,20.0,180.7,180.63,5.5359]
[1722113391730,20.0,180.7,180.58,15.8128]
[1722113391901,13.8263,180.82,180.55,13.8459]
[1722113391902,5.5336,180.72,180.55,13.8459]
[1722113392108,20.0,180.77,180.55,13.8459]
[1722113392109,25.534,180.7,180.55,13.8459]
[1722113392313,5.537,180.61,180.47,15.8128]
[1722113392503,20.0,180.63,180.47,15.8128]
[1722113392810,20.0,180.63,180.29,36.67]
[1722113392811,20.0,180.51,180.33,15.8128]
[1722113393112,25.5402,180.5,180.35,19.4058]
[1722113393314,20.0,180.46,180.33,15.8128]
[1722113393518,45.17,180.45,180.33,15.8128]
[1722113393823,65.0,180.44,180.33,15.8128]
[1722113393997,0.34,180.44,180.33,15.8128]
[1722113394193,0.17,180.44,180.33,15.8128]
[1722113394610,0.17,180.44,180.29,13.8661]
[1722113394611,20.0,180.43,180.29,13.8661]
[1722113394796,20.0,180.42,180.34,13.8623]
[1722113395001,20.0,180.42,180.3,5.5461]
[1722113395305,45.17,180.41,180.28,13.8668]
[1722113395517,20.17,180.4,180.34,5.5448]
[1722113395701,20.0,180.4,180.37,5.544]
[1722113395897,20.0,180.59,180.26,0.8320888]
[1722113396100,20.0,180.52,180.38,13.8591]
[1722113396324,20.0,180.51,180.26,0.8320888]
[1722113396494,25.5405,180.49,180.33,5.5453]
[1722113396697,20.0,180.48,180.35,5.5447]
[1722113396897,20.0,180.48,180.32,13.8637]
[1722113396898,0.17,180.47,180.37,5.5439]
[1722113397196,0.17,180.47,180.32,13.8637]
[1722113397393,45.34,180.47,180.34,5.5448]
[1722113397592,20.0,180.46,180.32,13.8637]
[1722113397817,45.17,180.45,180.26,14.7003888]
[1722113398023,25.7123,180.44,180.26,14.7003888]
[1722113398202,5.5426,180.42,180.26,14.7003888]
[1722113398404,70.8832,180.41,180.26,14.7003888]
[1722113398596,20.0,180.54,180.38,5.5437]
[1722113398798,19.404,180.5,180.26,0.8320888]
[1722113399007,36.67,180.54,180.37,5.5439]
[1722113399222,36.67,180.54,180.26,0.8320888]
[1722113399223,16.0592,180.51,180.4,5.5431]
[1722113399399,25.539,180.54,180.26,30.8720888]
[1722113399721,25.539,180.54,180.4,13.8574]
[1722113399722,36.0592,180.54,180.4,13.8574]
[1722113399921,36.0592,180.54,180.4,19.4005]
[1722113400126,20.0,180.53,180.4,13.8574]
[1722113400337,22.224597,180.6,180.45,13.8541]
[1722113400503,22.224597,180.6,180.52,5.5393]
[1722113400700,20.0,180.66,180.51,5.5398]
[1722113400899,6.359,180.68,180.42,16.0592]
[1722113401105,28.573695,180.68,180.54,13.8466]
[1722113401306,20.0,180.73,180.54,13.8466]
[1722113401543,20.0,180.73,180.58,13.8436]
[1722113401903,5.5334,180.72,180.6,5.5369]
[1722113402109,6.359,180.77,180.66,5.535]
[1722113402303,25.531,180.8,180.63,13.8403]
[1722113402506,20.0,180.8,180.67,13.8368]
[1722113402804,20.0,180.8,180.48,30.04]
[1722113402805,20.0,180.74,180.51,0.17]
[1722113403007,20.0,180.72,180.49,20.0]
[1722113403340,20.0,180.75,180.6,13.8423]
[1722113403516,5.78768179,180.82,180.55,22.4523]
[1722113403709,6.359,180.86,180.56,20.34]
[1722113403906,20.0,180.89,180.69,13.8357]
[1722113403907,40.0,180.89,180.69,13.8357]
[1722113404227,20.0,180.93,180.69,13.8357]
[1722113404228,20.0,180.87,180.69,13.8357]
[1722113404530,5.5289,180.87,180.69,13.8357]
[1722113404702,5.7503318,180.88,180.74,5.5327]
[1722113404908,0.2216318,180.88,180.73,13.832]
[1722113405113,0.2216318,180.88,180.74,45.0]
[1722113405314,20.0,180.87,180.67,13.8366]
[1722113405521,0.2216318,180.88,180.58,30.04]
[1722113405522,20.0,180.82,180.58,30.04]
[1722113405726,20.0,180.85,180.59,65.0]
[1722113405909,14.0436318,180.88,180.66,13.8376]
[1722113405910,20.0,180.87,180.66,13.8376]
[1722113406107,25.5294,180.85,180.71,5.5335]
[1722113406314,5.7503318,180.88,180.71,13.8342]
[1722113406525,0.2216318,180.88,180.75,13.8305]
[1722113406967,0.2216318,180.88,180.77,5.5316]
[1722113407115,0.2216318,180.88,180.75,13.8305]
[1722113407640,0.2216318,180.88,180.81,5.5305]
[1722113407819,0.2216318,180.88,180.8,13.8274]
[1722113408213,0.2216318,180.88,180.87,5.5288]
[1722113408730,0.2216318,180.88,180.76,46.0992]
[1722113408919,0.2216318,180.88,180.78,5.5314]
[1722113409127,0.2216318,180.88,180.76,16.0592]
[1722113409509,0.2216318,180.88,180.86,5.529]
[1722113410530,20.0,181.09,180.87,30.04]
[1722113410738,16.0592,181.08,180.98,13.813]
[1722113410922,20.0,181.11,180.95,5.5261]
[1722113411119,5.5236,181.05,180.92,5.5272]
[1722113411433,5.5228,181.07,180.94,5.5264]
[1722113411921,5.5228,181.07,180.94,5.5265]
[1722113412119,5.5223,181.09,180.88,65.0]
[1722113412329,20.0,181.11,180.88,65.0]
[1722113412330,5.522,181.1,180.95,5.5261]
[1722113412545,5.522,181.1,180.89,0.34]
[1722113412546,1.0537206,181.12,181.02,5.5239]
[1722113412865,5.5221,181.09,180.96,5.5258]
[1722113413154,20.0,181.1,180.88,102.01]
[1722113413315,25.5222,181.09,180.95,5.5261]
[1722113413518,25.5222,181.09,180.96,5.5259]
[1722113413519,20.0,181.09,180.96,5.5259]
[1722113413739,20.0,181.07,180.94,13.8167]
[1722113414050,20.0,181.05,180.9,5.5277]
[1722113414218,20.0,181.05,180.83,37.01]
[1722113414219,20.0,181.04,180.94,13.8166]
[1722113414554,20.0,181.08,180.98,13.813]
[1722113414766,20.0,181.08,181.01,5.5243]
[1722113415053,1.0537206,181.12,181.01,5.5243]
[1722113415224,1.0537206,181.12,180.95,16.513]
[1722113415418,20.0,181.11,181.0,5.5248]
[1722113415725,20.0,181.11,180.99,5.5249]
[1722113415928,20.0,181.11,180.95,16.513]
[1722113415929,1.0537206,181.12,180.95,16.513]
[1722113416114,1.0537206,181.12,181.01,5.5244]
[1722113416316,1.0537206,181.12,181.03,5.5238]
[1722113416530,1.0537206,181.12,181.02,19.3339]
[1722113416916,6.5750206,181.12,181.0,5.5247]
[1722113417118,1.0537206,181.12,180.97,13.8142]
[1722113417314,1.0537206,181.12,180.96,5.5259]
[1722113417315,20.0,181.1,180.96,5.5259]
[1722113417538,20.0,181.09,180.95,16.513]
[1722113417750,25.5216,181.11,180.97,5.5256]
[1722113418052,5.5219,181.1,180.97,5.5256]
[1722113418224,5.5219,181.1,180.95,16.513]
[1722113418225,5.5235,181.05,180.95,16.513]
[1722113418425,25.8638,181.04,180.95,16.513]
[1722113418724,5.5252,180.99,180.86,5.529]
[1722113418919,20.17,181.04,180.95,5.5263]
[1722113419114,5.525,181.0,180.86,5.5288]
[1722113419315,5.525,181.0,180.85,16.513]
[1722113419316,0.17,180.99,180.85,16.513]
[1722113419647,0.17,180.91,180.85,16.513]
[1722113419823,0.17,180.91,180.81,13.8263]
[1722113420028,0.34,180.91,180.84,5.5296]
[1722113420219,20.0,181.07,180.75,16.513]
[1722113420541,20.0,181.02,180.91,5.5274]
[1722113420721,40.0,181.02,180.9,13.8196]
[1722113420926,20.0,181.02,180.9,13.8196]
[1722113421121,20.0,181.11,180.94,13.8161]
[1722113421324,6.5750206,181.12,180.84,37.01]
[1722113421549,1.0537206,181.12,180.99,13.8128]
[1722113421732,1.0537206,181.12,180.91,37.01]
[1722113421733,1.0537206,181.12,180.96,16.513]
[1722113421934,1.0537206,181.12,181.01,5.5245]
[1722113422119,5.5224,181.08,180.96,16.513]
[1722113422321,5.5219,181.1,180.96,22.0388]
[1722113422515,5.5226,181.08,180.96,16.513]
[1722113422747,1.0537206,181.12,180.97,20.0]
[1722113423043,1.0537206,181.12,181.03,13.8097]
[1722113423428,1.0537206,181.12,181.06,5.5228]
[1722113423645,1.0537206,181.12,180.99,5.5251]
[1722113423954,21.0537206,181.12,180.95,5.5263]
[1722113424142,21.0537206,181.12,180.85,16.513]
[1722113424143,1.0537206,181.12,180.85,16.513]
[1722113424331,1.0537206,181.12,181.04,5.5234]
[1722113424657,1.0537206,181.12,180.86,20.0]
[1722113424658,5.5219,181.1,180.97,5.5256]
[1722113424863,5.5242,181.02,180.91,13.8185]
[1722113425143,1.0537206,181.12,180.85,16.513]
[1722113425144,5.5235,181.05,180.85,16.513]
[1722113425318,1.0537206,181.12,180.85,16.513]
[1722113425319,20.0,181.04,180.87,5.5287]
[1722113425647,20.0,180.97,180.74,22.8134]
[1722113425864,20.0,180.95,180.78,13.8284]
[1722113426053,20.17,180.94,180.78,13.8284]
[1722113426359,20.17,180.93,180.74,16.513]
[1722113426667,20.0,180.84,180.73,13.8327]
[1722113426830,20.0,180.83,180.65,22.8134]
[1722113427037,20.0,180.82,180.65,16.513]
[1722113427256,20.34,180.81,180.67,13.8369]
[1722113427472,20.0,180.78,180.67,13.8369]
[1722113427754,20.0,180.77,180.67,13.8369]
[1722113427953,0.34,180.76,180.67,13.8369]
[1722113428251,0.34,180.76,180.57,43.3104]
[1722113428427,0.34,180.76,180.66,19.3731]
[1722113428830,0.34,180.76,180.66,13.838]
[1722113429267,20.0,180.87,180.75,5.5323]
[1722113429561,6.3601,180.89,180.75,5.5324]
[1722113429562,11.8884,180.89,180.75,5.5324]
[1722113429736,31.8883,180.89,180.71,13.834]
[1722113430059,20.0,180.83,180.71,13.834]
[1722113430237,20.0,180.83,180.68,5.5345]
[1722113430438,20.0,180.83,180.71,5.5334]
[1722113430635,20.0,180.82,180.7,13.835]
[1722113430836,20.0,180.79,180.64,5.5355]
[1722113431036,20.0,180.79,180.63,13.8403]
[1722113431037,20.0,180.8,180.63,13.8403]
[1722113431258,20.0,180.75,180.63,13.8403]
[1722113431447,0.34,180.74,180.63,13.8403]
[1722113431652,20.0,180.72,180.6,5.537]
[1722113431851,20.0,180.71,180.59,5.5373]
[1722113432039,0.17,180.7,180.61,5.5366]
[1722113432236,0.17,180.7,180.61,13.8414]
[1722113432437,0.17,180.7,180.65,13.8381]
[1722113432644,20.17,180.7,180.61,5.5366]
[1722113432838,20.17,180.69,180.6,13.8427]
[1722113433048,0.17,180.69,180.6,13.8427]
[1722113433243,0.17,180.68,180.6,13.8427]
[1722113433564,0.17,180.68,180.54,30.3598]
[1722113433865,0.17,180.69,180.57,5.5377]
[1722113434172,0.17,180.69,180.54,30.3598]
[1722113434173,40.17,180.69,180.56,5.5381]
[1722113434331,20.0,180.67,180.54,30.3598]
[1722113434531,20.17,180.66,180.55,5.5384]
[1722113434737,0.17,180.65,180.55,5.5384]
[1722113434955,0.17,180.65,180.54,30.3598]
[1722113435160,0.17,180.65,180.57,5.5378]
[1722113435458,0.17,180.65,180.55,5.5384]
[1722113435761,20.17,180.66,180.55,5.5384]
[1722113436065,20.17,180.66,180.54,30.3598]
[1722113436066,20.0,180.64,180.54,13.8468]
[1722113436356,20.0,180.63,180.54,13.8468]
[1722113436567,0.17,180.62,180.54,13.8468]
[1722113436732,0.17,180.62,180.45,15.1413]
[1722113436733,20.0,180.63,180.58,13.8436]
[1722113436934,6.0831,180.72,180.62,13.8408]
[1722113437133,20.0,180.74,180.62,13.8408]
[1722113437349,25.5322,180.76,180.62,13.8408]
[1722113437659,11.6142,180.8,180.66,13.8377]
[1722113437845,20.0,180.76,180.66,13.8377]
[1722113438048,20.0,180.74,180.61,13.8414]
[1722113438250,25.5329,180.74,180.62,5.5363]
[1722113438436,20.0,180.72,180.61,19.3779]
[1722113438643,25.5342,180.7,180.57,5.5378]
[1722113438844,20.0,180.68,180.56,13.8454]
[1722113439147,25.5347,180.68,180.56,5.5381]
[1722113439357,13.8306,180.76,180.45,15.1413]
[1722113439358,20.0,180.64,180.55,13.8464]
[1722113439666,20.17,180.63,180.55,13.8464]
[1722113439970,20.17,180.63,180.52,5.5393]
[1722113439971,0.17,180.62,180.52,5.5393]
[1722113440764,0.17,180.62,180.51,5.5396]
[1722113440957,0.17,180.62,180.53,5.5391]
[1722113441161,0.17,180.62,180.5,13.8498]
[1722113441356,20.17,180.62,180.5,13.8498]
[1722113441658,0.17,180.61,180.5,13.8498]
[1722113442060,0.17,180.61,180.45,15.1413]
[1722113442061,20.0,180.59,180.45,28.9953]
[1722113442242,20.17,180.58,180.48,5.5406]
[1722113442448,0.17,180.57,180.46,5.5412]
[1722113442655,5.7082,180.57,180.46,5.5412]
[1722113442942,40.17,180.56,180.45,13.854]
[1722113443141,40.17,180.56,180.44,5.5418]
[1722113443142,20.0,180.73,180.62,5.5362]
[1722113443362,20.0,180.66,180.51,13.849]
[1722113443538,37.01,180.74,180.52,5.5393]
[1722113443539,20.0,180.64,180.52,5.5393]
[1722113443737,28.9778,180.69,180.55,5.5385]
[1722113443738,40.0,180.66,180.55,5.5385]
[1722113443946,20.0,180.68,180.55,5.5385]
[1722113444159,20.0,180.68,180.53,5.539]
[1722113444443,15.1413,180.69,180.59,5.5373]
[1722113444766,5.5338,180.71,180.59,13.8434]
[1722113444944,5.5325,180.75,180.64,5.5358]
[1722113445264,5.5325,180.75,180.58,13.8436]
[1722113445265,25.5326,180.75,180.58,13.8436]
[1722113445440,5.5341,180.7,180.58,13.8436]
[1722113445638,26.0831,180.76,180.58,13.8436]
[1722113445859,5.5327,180.75,180.61,13.8413]
[1722113446061,26.0831,180.76,180.65,5.5354]
[1722113446263,26.0831,180.76,180.43,35.1413]
[1722113446264,5.5343,180.69,180.56,13.8455]
[1722113446466,5.5343,180.69,180.43,52.1513]
[1722113446467,20.0,180.7,180.51,13.8491]
[1722113446468,5.5365,180.62,180.51,13.8491]
[1722113446772,5.5365,180.62,180.51,19.3888]
[1722113446945,20.0,180.68,180.55,13.8463]
[1722113447150,40.0,180.73,180.59,13.8429]
[1722113447351,20.0,180.7,180.59,13.8429]
[1722113447544,0.17,180.69,180.59,19.38]
[1722113447746,0.17,180.69,180.63,5.536]
[1722113447946,20.0,180.74,180.63,5.536]
[1722113448149,26.0831,180.76,180.62,13.8405]